bitfinex/quotes_SOLUSD_20250316
["timestamp","ask_amount","ask_price","bid_price","bid_amount"]
[1742133303835,7.62,128.02,127.96,7.8149]
[1742133304039,7.62,128.02,127.98,26.72902715]
[1742133304236,7.62,128.02,127.99,26.72902715]
[1742133304610,7.62,128.02,128.0,26.72902715]
[1742133304805,59.94379915,128.05,127.96,7.8149]
[1742133305030,52.99867601,128.04,127.99,26.72902715]
[1742133305241,26.26964886,128.04,128.0,26.72902715]
[1742133305416,7.62,128.04,128.01,26.72902715]
[1742133306831,45.37867601,128.03,127.95,1.6113]
[1742133307026,45.37867601,128.03,127.98,26.72902715]
[1742133307220,7.62,128.04,128.0,26.72902715]
[1742133307413,26.26964886,128.04,128.0,26.72902715]
[1742133307614,26.33264886,128.04,128.0,26.72902715]
[1742133307813,60.87177601,128.04,127.99,26.72902715]
[1742133308044,26.72902715,128.03,127.98,26.72902715]
[1742133308334,45.37867601,128.02,127.97,26.72902715]
[1742133308540,26.72902715,128.0,127.95,34.54432715]
[1742133308746,26.72902715,128.0,127.94,0.03]
[1742133308747,53.01867601,127.99,127.94,34.57492715]
[1742133308962,26.28964886,127.99,127.95,26.72902715]
[1742133309141,7.64,127.99,127.96,26.72902715]
[1742133309326,7.64,127.99,127.98,26.72902715]
[1742133310448,7.64,127.99,127.95,7.8153]
[1742133310752,7.64,127.99,127.96,26.72902715]
[1742133311341,7.64,127.99,127.95,34.54432715]
[1742133311951,7.64,127.99,127.97,26.72902715]
[1742133312531,7.64,127.99,127.95,7.8153]
[1742133312731,7.64,127.99,127.98,26.72902715]
[1742133313327,7.64,127.99,127.98,34.54272715]
[1742133313653,7.64,127.99,127.97,34.54332715]
[1742133314161,7.64,127.99,127.96,34.04372715]
[1742133315236,7.64,127.99,127.96,24.02302433]
[1742133315628,31.05,127.99,127.96,7.3147]
[1742133315833,7.64,127.99,127.96,7.3147]
[1742133316126,7.64,127.99,127.95,7.8153]
[1742133316344,18.64964886,127.98,127.94,0.03]
[1742133316550,41.50227319,127.98,127.94,0.03]
[1742133317259,40.40264747,127.97,127.94,0.03]
[1742133317436,35.35797319,127.95,127.94,0.03]
[1742133318166,18.64964886,127.95,127.94,0.03]
[1742133318343,35.35797319,127.95,127.94,0.03]
[1742133318866,59.05229633,127.95,127.94,0.03]
[1742133319272,59.05229633,127.95,127.85,5.5973]
[1742133319447,16.70832433,127.91,127.85,7.8216]
[1742133319768,16.70832433,127.89,127.84,24.53032433]
[1742133319938,7.62,127.88,127.84,24.53032433]
[1742133320141,7.62,127.88,127.82,2.797027]
[1742133320341,7.62,127.88,127.83,7.8228]
[1742133320561,7.62,127.88,127.83,16.70832433]
[1742133320562,18.933972,127.87,127.83,16.70832433]
[1742133320739,18.64964886,127.87,127.83,16.70832433]
[1742133321054,7.62,127.88,127.84,16.70832433]
[1742133321256,18.64964886,127.89,127.86,26.78349943]
[1742133321434,7.64,127.87,127.85,26.78349943]
[1742133321641,7.64,127.87,127.84,26.78349943]
[1742133321840,7.64,127.87,127.83,26.78349943]
[1742133322247,0.28432314,127.86,127.82,29.58052643]
[1742133322448,0.28432314,127.86,127.82,2.797027]
[1742133322652,45.71747143,127.83,127.82,2.797027]
[1742133323457,53.54027143,127.83,127.82,2.797027]
[1742133323850,7.6594,127.88,127.82,37.40362643]
[1742133324052,7.7,127.86,127.82,10.620127]
[1742133324251,7.7,127.86,127.83,26.78349943]
[1742133324641,7.7,127.86,127.85,26.78349943]
[1742133325259,7.72,127.9,127.85,26.78349943]
[1742133325452,7.72,127.9,127.87,26.78349943]
[1742133325855,11.68499375,127.91,127.89,26.78349943]
[1742133326062,11.68499375,127.91,127.87,1.6474]
[1742133326268,11.68499375,127.91,127.9,26.78349943]
[1742133326446,11.68499375,127.91,127.87,1.6474]
[1742133326653,18.64964886,127.94,127.9,26.78349943]
[1742133326982,7.7,127.93,127.9,26.78349943]
[1742133327155,7.7,127.93,127.91,26.78349943]
[1742133327356,45.43314829,127.92,127.88,7.8198]
[1742133327667,18.64964886,127.92,127.88,34.60329943]
[1742133327870,7.72,127.91,127.88,7.8198]
[1742133328049,34.50349943,127.91,127.84,7.8222]
[1742133328256,34.50349943,127.91,127.86,26.78349943]
[1742133328559,7.72,127.91,127.89,26.78349943]
[1742133328744,7.72,127.91,127.9,26.78349943]
[1742133329143,7.72,127.94,127.9,26.78349943]
[1742133329365,7.72,127.95,127.92,26.78349943]
[1742133329578,7.72,127.96,127.93,26.78349943]
[1742133329741,25.04354886,127.98,127.95,26.78349943]
[1742133329946,7.72,127.99,127.96,26.78349943]
[1742133330165,7.72,127.99,127.97,26.78349943]
[1742133330678,7.72,127.99,127.98,26.78349943]
[1742133330852,6.3939,128.02,127.98,26.78349943]
[1742133331052,7.72,128.01,127.99,26.78349943]
[1742133331554,7.72,128.01,128.0,26.78349943]
[1742133332162,7.783,128.04,128.0,26.78349943]
[1742133332466,7.783,128.04,128.02,26.78349943]
[1742133332667,26.78349943,128.03,127.98,26.78349943]
[1742133333064,18.64964886,128.02,127.98,26.78349943]
[1742133333266,45.43314829,128.02,127.97,26.78349943]
[1742133333460,26.78349943,128.01,127.96,26.78349943]
[1742133333764,26.78349943,128.0,127.95,26.78349943]
[1742133333961,45.43314829,127.98,127.93,26.78349943]
[1742133334172,45.43314829,127.98,127.92,26.78349943]
[1742133334667,45.43314829,127.98,127.93,26.78349943]
[1742133334855,7.72,127.99,127.95,26.78349943]
[1742133335060,7.72,127.99,127.97,26.78349943]
[1742133335249,7.72,127.99,127.96,26.78349943]
[1742133335960,7.72,127.99,127.95,26.78349943]
[1742133336166,7.7,128.01,127.98,26.78349943]
[1742133336470,18.64964886,128.0,127.96,26.78349943]
[1742133336656,18.64964886,128.0,127.97,26.78349943]
[1742133336860,7.7,128.01,127.97,26.78349943]
[1742133337450,7.7,128.01,127.98,26.78349943]
[1742133338269,7.7,128.01,127.99,26.78349943]
[1742133338446,7.7,128.01,127.98,26.78349943]
[1742133338772,7.7,128.01,127.97,26.78349943]
[1742133339381,7.7,128.01,127.92,26.78349943]
[1742133339382,34.48349943,128.01,127.92,26.78349943]
[1742133339564,34.48349943,128.01,127.96,26.78349943]
[1742133339872,34.48349943,128.01,127.97,26.78349943]
[1742133339873,7.7,128.01,127.97,26.78349943]
[1742133340070,34.48349943,128.01,127.96,26.78349943]
[1742133340269,7.7,128.01,127.97,26.78349943]
[1742133341369,18.64964886,128.0,127.96,26.78349943]
[1742133341568,7.7,128.01,127.98,26.78349943]
[1742133342978,7.7,128.01,127.92,26.78349943]
[1742133343365,7.7,128.01,127.97,26.78349943]
[1742133343677,34.48349943,128.01,127.96,26.78349943]
[1742133343875,7.7,128.01,127.96,26.78349943]
[1742133344175,7.7,128.01,127.98,26.78349943]
[1742133344381,7.7,128.01,127.97,26.78349943]
[1742133344682,7.7,128.01,127.98,26.78349943]
[1742133345582,7.7,128.01,127.97,26.78349943]
[1742133347464,7.7,128.01,127.92,26.78349943]
[1742133347465,26.78349943,127.99,127.92,26.78349943]
[1742133347671,26.78349943,127.98,127.94,26.78349943]
[1742133348184,26.78349943,127.99,127.94,26.78349943]
[1742133348886,45.43314829,128.0,127.95,26.78349943]
[1742133349073,76.65574829,128.0,127.95,26.78349943]
[1742133349276,26.78349943,127.99,127.94,26.78349943]
[1742133349669,34.59659943,127.99,127.94,26.78349943]
[1742133350065,40.61099943,128.01,127.96,26.78349943]
[1742133350271,13.8275,128.01,127.97,26.78349943]
[1742133350476,7.7,128.01,127.98,26.78349943]
[1742133350659,7.7,128.01,127.97,26.78349943]
[1742133351069,7.7,128.01,127.98,26.78349943]
[1742133351384,7.64,128.01,127.99,26.78349943]
[1742133351684,7.703,128.02,128.0,26.78349943]
[1742133351881,0.063,128.02,128.0,26.78349943]
[1742133352068,0.063,128.02,128.01,26.78349943]
[1742133352771,0.063,128.02,128.0,26.78349943]
[1742133353076,7.703,128.02,127.98,26.78349943]
[1742133354671,7.703,128.02,127.99,26.78349943]
[1742133356084,7.703,128.02,128.01,26.78349943]
[1742133357085,0.063,128.02,128.01,26.78349943]
[1742133360884,0.063,128.04,128.01,26.78349943]
[1742133361184,0.063,128.04,128.03,26.78349943]
[1742133363797,0.063,128.04,128.03,6.78349943]
[1742133364676,7.623,128.06,128.03,6.78349943]
[1742133364879,0.063,128.06,128.05,26.78349943]
[1742133365079,0.063,128.06,128.03,26.78349943]
[1742133365589,0.063,128.06,128.04,26.78349943]
[1742133366196,0.063,128.06,128.05,26.78349943]
[1742133369501,0.063,128.06,128.04,26.78349943]
[1742133370305,0.063,128.06,128.05,26.78349943]
[1742133370698,0.063,128.06,128.02,1.6913]
[1742133371007,0.063,128.06,128.05,26.78349943]
[1742133371222,0.063,128.06,128.02,1.6913]
[1742133371223,18.71264886,128.06,128.02,0.03]
[1742133371391,26.78349943,128.03,128.02,0.03]
[1742133371713,42.12264886,128.06,128.02,0.03]
[1742133371913,26.78349943,128.05,128.02,0.03]
[1742133372918,26.78349943,128.04,128.02,0.03]
[1742133373308,7.8095,128.05,128.02,0.03]
[1742133373512,26.78349943,128.04,128.02,0.03]
[1742133373690,26.78349943,128.03,128.02,0.03]
[1742133374012,69.12747143,128.03,128.02,0.03]
[1742133374516,68.84314829,128.03,128.02,0.03]
[1742133374711,82.29220658,128.03,128.02,0.03]
[1742133375121,5.63845829,128.03,128.02,0.03]
[1742133375611,13.21845829,128.03,128.02,0.03]
[1742133376604,13.21845829,128.03,128.0,26.78349943]
[1742133377204,13.21845829,128.03,128.01,26.78349943]
[1742133377205,7.58,128.03,128.01,26.78349943]
[1742133378105,7.58,128.03,128.0,26.78349943]
[1742133379723,7.58,128.03,128.01,26.78349943]
[1742133380628,7.58,128.03,128.02,26.78349943]
[1742133380788,7.54,128.04,128.02,26.78349943]
[1742133382424,0.063,128.06,128.03,26.78349943]
[1742133382620,0.063,128.06,128.05,26.78349943]
[1742133384030,0.0001,128.06,128.05,26.78349943]
[1742133384620,0.0001,128.06,128.05,28.38849943]
[1742133386319,0.063,128.12,128.08,20.0]
[1742133386529,0.063,128.12,128.1,6.78349943]
[1742133386730,0.063,128.12,128.05,1.605]
[1742133386915,0.063,128.12,128.08,26.78349943]
[1742133387739,0.063,128.12,128.1,26.78349943]
[1742133388931,0.063,128.12,128.11,26.78349943]
[1742133389438,0.063,128.12,128.1,26.78349943]
[1742133389614,0.063,128.12,128.05,1.605]
[1742133389939,0.063,128.12,128.09,26.78349943]
[1742133390837,0.063,128.12,128.1,26.78349943]
[1742133392035,0.063,128.12,128.11,26.78349943]
[1742133394444,0.063,128.12,128.1,26.78349943]
[1742133395124,0.063,128.12,128.11,26.78349943]
[1742133396319,0.063,128.12,128.09,26.78349943]
[1742133396520,0.063,128.12,128.05,1.605]
[1742133396521,7.46,128.11,128.07,26.78349943]
[1742133396724,34.24349943,128.11,128.06,26.78349943]
[1742133396932,7.46,128.11,128.07,26.78349943]
[1742133397135,7.46,128.11,128.08,26.78349943]
[1742133397447,7.46,128.11,128.07,26.78349943]
[1742133397950,7.46,128.11,128.08,26.78349943]
[1742133398140,7.46,128.11,128.07,26.78349943]
[1742133399022,27.46,128.11,128.07,26.78349943]
[1742133399226,45.43314829,128.1,128.01,1.5402]
[1742133399432,45.43314829,128.1,128.05,26.78349943]
[1742133400358,18.64964886,128.1,128.06,26.78349943]
[1742133401051,53.23954829,128.1,128.05,26.78349943]
[1742133401227,26.78349943,128.09,128.04,26.78349943]
[1742133401555,26.78349943,128.07,128.02,26.78349943]
[1742133401844,7.46,128.06,128.03,26.78349943]
[1742133402835,7.46,128.06,128.04,26.78349943]
[1742133403353,7.46,128.06,128.05,26.78349943]
[1742133404253,52.94129943,128.11,128.05,26.78349943]
[1742133404550,7.44,128.1,128.06,26.78349943]
[1742133404926,7.44,128.1,128.01,1.5402]
[1742133405131,7.44,128.1,128.07,26.78349943]
[1742133405352,7.44,128.1,128.06,26.78349943]
[1742133407472,7.44,128.1,128.03,20.03]
[1742133407655,7.44,128.1,128.06,26.78349943]
[1742133408751,7.44,128.1,128.07,26.78349943]
[1742133408950,7.44,128.1,128.06,26.78349943]
[1742133409151,26.78349943,128.09,128.04,26.78349943]
[1742133409963,33.89604886,128.1,128.03,0.03]
[1742133410260,26.78349943,128.07,128.03,0.03]
[1742133410559,39.85161269,128.09,128.04,26.78349943]
[1742133410759,47.65881269,128.09,128.04,26.78349943]
[1742133411374,26.78349943,128.08,128.03,26.81349943]
[1742133411568,31.30123879,128.08,128.03,26.81349943]
[1742133411768,4.51773936,128.08,128.05,26.78349943]
[1742133412065,4.51773936,128.08,128.04,26.78349943]
[1742133412573,4.51773936,128.08,128.05,26.78349943]
[1742133412770,7.42,128.09,128.05,26.78349943]
[1742133413151,24.1069238,128.09,128.04,16.6869238]
[1742133413551,20.0,128.11,128.06,16.6869238]
[1742133413755,7.4,128.1,128.07,16.6869238]
[1742133413960,20.0,128.11,128.08,16.6869238]
[1742133414159,7.4,128.1,128.08,16.6869238]
[1742133414569,27.42,128.11,128.09,16.6869238]
[1742133414777,27.42,128.11,128.08,16.6869238]
[1742133415579,27.42,128.11,128.09,16.6869238]
[1742133416382,20.0,128.11,128.09,18.3236238]
[1742133416552,0.063,128.15,128.1,53.3738476]
[1742133416754,0.063,128.15,128.14,16.6869238]
[1742133419053,0.063,128.15,128.14,26.64906974]
[1742133422263,0.063,128.15,128.14,53.29813948]
[1742133422991,0.063,128.15,128.14,26.64906974]
[1742133426384,0.063,128.15,128.14,53.29813948]
[1742133427084,0.063,128.16,128.14,53.58246262]
[1742133427377,0.063,128.16,128.15,53.29813948]
[1742133427583,0.063,128.19,128.15,61.08873948]
[1742133427773,0.063,128.19,128.18,26.64906974]
[1742133439089,0.063,128.19,128.18,16.64259598]
[1742133442578,0.063,128.19,128.18,20.61108589]
[1742133447805,0.063,128.19,128.18,16.64259598]
[1742133451086,0.063,128.19,128.17,16.64259598]
[1742133451485,0.063,128.19,128.18,16.64259598]
[1742133457401,0.063,128.22,128.16,16.67259598]
[1742133457402,0.063,128.22,128.19,36.64259598]
[1742133457601,0.063,128.22,128.21,16.64259598]
[1742133459206,0.063,128.22,128.2,16.64259598]
[1742133460215,13.5141,128.21,128.16,0.03]
[1742133460405,13.5141,128.21,128.18,16.64259598]
[1742133461596,5.66935794,128.2,128.18,16.64259598]
[1742133461797,5.66935794,128.2,128.19,16.64259598]
[1742133463217,7.32,128.21,128.16,0.03]
[1742133463414,7.32,128.21,128.18,16.64259598]
[1742133463798,7.32,128.21,128.19,16.64259598]
[1742133463996,0.063,128.22,128.2,16.64259598]
[1742133464196,0.063,128.22,128.21,16.64259598]
[1742133464701,0.063,128.22,128.2,16.64259598]
[1742133465623,0.063,128.22,128.21,16.64259598]
[1742133469304,0.063,128.22,128.2,16.64259598]
[1742133469602,0.063,128.22,128.21,16.64259598]
[1742133469920,0.063,128.22,128.17,5.53674229]
[1742133470119,0.063,128.22,128.2,16.64259598]
[1742133470307,0.063,128.22,128.21,16.64259598]
[1742133479332,0.063,128.22,128.21,10.64976552]
[1742133481938,29.29941438,128.27,128.2,20.0]
[1742133482114,10.64976552,128.26,128.21,10.64976552]
[1742133482619,29.29941438,128.27,128.21,10.64976552]
[1742133483017,29.29941438,128.27,128.22,10.64976552]
[1742133483215,10.64976552,128.26,128.2,20.0]
[1742133483428,15.19940529,128.26,128.21,10.64976552]
[1742133483619,5.68583816,128.25,128.21,10.64976552]
[1742133484535,5.68583816,128.25,128.2,10.64976552]
[1742133484734,16.33560368,128.25,128.2,10.64976552]
[1742133485144,4.54963977,128.24,128.2,10.64976552]
[1742133485439,7.24,128.23,128.2,10.64976552]
[1742133485642,7.24,128.23,128.19,10.67976552]
[1742133486741,10.23547793,128.22,128.19,10.67976552]
[1742133487043,10.23547793,128.22,128.19,0.03]
[1742133488224,4.54963977,128.21,128.19,0.03]
[1742133488620,20.88524345,128.21,128.19,0.03]
[1742133489133,28.68494345,128.21,128.19,0.03]
[1742133489531,20.88524345,128.21,128.19,0.03]
[1742133489729,4.54963977,128.2,128.19,0.03]
[1742133490249,10.23547793,128.2,128.19,0.03]
[1742133490723,10.23547793,128.2,128.19,10.67976552]
[1742133492054,10.23547793,128.2,128.19,0.03]
[1742133492441,17.45547793,128.2,128.19,0.03]
[1742133492667,10.23547793,128.2,128.19,0.03]
[1742133492848,10.23547793,128.2,128.19,10.67976552]
[1742133493051,5.68583816,128.2,128.19,10.67976552]
[1742133493938,7.22,128.24,128.19,10.67976552]
[1742133494255,7.22,128.24,128.22,10.64976552]
[1742133494637,4.54225852,128.23,128.22,10.64976552]
[1742133495336,10.22030213,128.23,128.22,10.64976552]
[1742133496239,5.67804361,128.23,128.22,10.64976552]
[1742133497147,7.2,128.25,128.22,10.64976552]
[1742133497467,7.2,128.25,128.19,0.03]
[1742133497648,7.2,128.25,128.24,10.64976552]
[1742133498160,7.2,128.27,128.24,10.64976552]
[1742133498866,5.68028921,128.26,128.24,10.64976552]
[1742133499367,10.22452057,128.26,128.25,10.64976552]
[1742133500750,5.68028921,128.26,128.25,10.64976552]
[1742133502077,7.23,128.28,128.25,10.64976552]
[1742133502262,7.2,128.27,128.21,0.063]
[1742133502456,18.64964886,128.26,128.22,10.64976552]
[1742133503256,4.53503719,128.25,128.22,10.64976552]
[1742133504285,4.53503719,128.25,128.21,30.71276552]
[1742133504576,5.67006511,128.24,128.21,30.71276552]
[1742133505077,10.2051023,128.24,128.22,10.64976552]
[1742133505282,10.2051023,128.24,128.21,0.063]
[1742133505573,0.28432314,128.22,128.18,10.24276552]
[1742133505758,7.2,128.21,128.18,10.64976552]
[1742133507151,7.2,128.21,128.19,10.64976552]
[1742133507776,7.2,128.21,128.18,10.64976552]
[1742133508559,7.2,128.21,128.18,10.14976552]
[1742133509379,7.2,128.21,128.19,10.64976552]
[1742133510259,7.2,128.21,128.2,10.64976552]
[1742133510655,7.2,128.21,128.19,10.64976552]
[1742133512782,7.2,128.21,128.19,10.71276552]
[1742133513681,7.2,128.21,128.2,10.64976552]
[1742133513868,7.2,128.21,128.19,10.71276552]
[1742133514782,6.7,128.21,128.19,10.71276552]
[1742133515581,53.08373752,128.2,128.19,0.063]
[1742133516378,58.75375475,128.2,128.19,0.063]
[1742133517271,66.55405475,128.2,128.19,0.063]
[1742133517469,68.864372,128.17,128.16,0.03]
[1742133517671,79.51413752,128.17,128.16,0.03]
[1742133518484,85.18415475,128.17,128.16,0.03]
[1742133518885,89.71801367,128.17,128.16,0.03]
[1742133519283,89.71801367,128.17,128.1,10.64976552]
[1742133519480,18.79181043,128.15,128.12,10.64976552]
[1742133521081,18.79181043,128.15,128.12,16.66680217]
[1742133521473,10.20387615,128.17,128.16,20.0]
[1742133521788,10.20387615,128.17,128.16,53.33360434]
[1742133522985,11.68499375,128.21,128.16,53.33360434]
[1742133523285,7.26,128.23,128.2,16.66680217]
[1742133523467,7.26,128.23,128.21,16.66680217]
[1742133524172,7.26,128.23,128.2,16.66680217]
[1742133525089,0.063,128.21,128.2,16.66680217]
[1742133527686,0.063,128.21,128.19,1.6493]
[1742133527891,0.063,128.21,128.2,36.66680217]
[1742133528183,0.063,128.21,128.2,36.16680217]
[1742133529482,0.063,128.21,128.19,16.66680217]
[1742133529688,0.063,128.21,128.2,16.66680217]
[1742133529992,0.063,128.21,128.2,36.66680217]
[1742133531778,0.063,128.21,128.2,20.0]
[1742133531974,7.263,128.21,128.2,20.0]
[1742133532575,7.263,128.21,128.19,16.16680217]
[1742133532782,7.263,128.21,128.19,36.66680217]
[1742133533892,7.263,128.21,128.19,16.66680217]
[1742133536079,7.263,128.21,128.2,16.66680217]
[1742133536791,0.063,128.21,128.2,16.66680217]
[1742133536999,7.263,128.21,128.2,16.66680217]
[1742133538191,7.263,128.21,128.2,16.16680217]
[1742133539389,0.063,128.21,128.2,16.16680217]
[1742133541692,0.063,128.21,128.19,20.0]
[1742133541883,0.063,128.21,128.2,16.66680217]
[1742133545104,0.063,128.21,128.2,10.64983708]
[1742133545511,0.063,128.21,128.2,10.14983708]
[1742133549205,0.063,128.21,128.2,16.64211812]
[1742133552212,0.063,128.21,128.2,16.64211812]
[1742133565943,0.063,128.21,128.19,20.03]
[1742133566118,0.063,128.21,128.2,16.64211812]
[1742133569132,0.063,128.21,128.2,10.65307093]
[1742133583334,0.063,128.21,128.19,0.03]
[1742133583536,7.263,128.21,128.19,0.03]
[1742133584051,7.263,128.21,128.19,10.68307093]
[1742133584458,7.263,128.21,128.19,0.03]
[1742133585933,5.69206028,128.2,128.19,0.03]
[1742133593259,7.263,128.21,128.19,0.03]
[1742133598442,18.933972,128.2,128.19,0.03]
[1742133598644,29.58704293,128.2,128.19,0.03]
[1742133599950,35.26887393,128.2,128.19,0.03]
[1742133600578,40.17334886,128.17,128.16,0.03]
[1742133600775,40.17334886,128.17,128.05,0.063]
[1742133600776,20.0,128.13,128.09,0.063]
[1742133600944,7.2,128.12,128.09,0.063]
[1742133601464,7.2,128.12,128.09,10.71607093]
[1742133601665,7.2,128.12,128.1,10.65307093]
[1742133602072,7.2,128.12,128.11,10.65307093]
[1742133602270,0.14216157,128.17,128.11,10.65307093]
[1742133602461,7.2,128.17,128.13,10.65307093]
[1742133602784,18.88499375,128.17,128.14,10.65307093]
[1742133602956,18.88499375,128.17,128.13,30.65307093]
[1742133603767,18.88499375,128.17,128.14,10.65307093]
[1742133603964,7.2,128.17,128.13,30.65307093]
[1742133604157,17.85307093,128.17,128.13,30.65307093]
[1742133604569,7.2,128.17,128.13,30.65307093]
[1742133604769,29.58704293,128.16,128.11,20.0]
[1742133604975,29.58704293,128.16,128.11,30.65307093]
[1742133605277,10.65307093,128.15,128.13,20.0]
[1742133606258,10.65307093,128.15,128.1,12.30227093]
[1742133606862,10.65307093,128.15,128.13,0.03]
[1742133608179,29.58704293,128.16,128.13,0.03]
[1742133608568,7.2,128.17,128.13,0.03]
[1742133608775,7.2,128.17,128.13,30.68307093]
[1742133608970,18.64964886,128.18,128.14,10.65307093]
[1742133609196,7.2,128.17,128.14,10.65307093]
[1742133609696,7.263,128.2,128.16,30.65307093]
[1742133609876,18.64964886,128.18,128.17,20.0]
[1742133610075,18.64964886,128.18,128.14,10.65307093]
[1742133610583,18.64964886,128.17,128.13,10.68307093]
[1742133610786,18.64964886,128.17,128.15,20.0]
[1742133610787,29.30271979,128.17,128.15,20.0]
[1742133611100,18.64964886,128.15,128.13,0.03]
[1742133611299,36.78704293,128.14,128.13,0.03]
[1742133611896,26.133972,128.14,128.13,0.03]
[1742133612200,7.2,128.14,128.13,0.03]
[1742133612490,7.2,128.14,128.13,10.68307093]
[1742133612890,0.28432314,128.17,128.13,10.68307093]
[1742133613100,7.2,128.16,128.13,36.69285814]
[1742133613290,0.063,128.2,128.15,16.66285814]
[1742133613592,18.71264886,128.2,128.16,16.66285814]
[1742133614285,18.71264886,128.2,128.15,36.66285814]
[1742133614492,35.375507,128.2,128.15,36.66285814]
[1742133615281,18.71264886,128.2,128.15,36.66285814]
[1742133615480,35.375507,128.2,128.15,36.66285814]
[1742133617499,18.71264886,128.2,128.16,16.66285814]
[1742133619409,17.21264886,128.2,128.16,16.66285814]
[1742133619705,16.66285814,128.19,128.15,20.0]
[1742133620111,33.875507,128.2,128.15,16.66285814]
[1742133620279,16.66285814,128.18,128.13,16.69285814]
[1742133620482,16.66285814,128.17,128.13,0.03]
[1742133620701,16.66285814,128.16,128.13,0.03]
[1742133621100,7.2,128.16,128.13,0.03]
[1742133622712,7.2,128.16,128.15,16.66285814]
[1742133623088,25.84964886,128.16,128.13,36.69285814]
[1742133624194,25.84964886,128.16,128.13,0.03]
[1742133624513,18.64964886,128.15,128.13,0.03]
[1742133625513,16.94718128,128.14,128.13,0.03]
[1742133626618,7.2,128.16,128.13,16.69285814]
[1742133626782,7.2,128.16,128.15,16.66285814]
[1742133627189,7.2,128.16,128.13,0.03]
[1742133627388,7.2,128.16,128.14,16.66285814]
[1742133627609,7.48432314,128.19,128.15,16.66285814]
[1742133627921,7.48432314,128.19,128.18,16.66285814]
[1742133627922,7.2,128.19,128.18,16.66285814]
[1742133628389,0.063,128.21,128.18,16.66285814]
[1742133628589,0.063,128.21,128.16,16.66285814]
[1742133628590,0.063,128.21,128.2,16.66285814]
[1742133628800,0.063,128.21,128.19,16.66285814]
[1742133629006,0.063,128.21,128.18,16.66285814]
[1742133629710,0.063,128.21,128.19,16.66285814]
[1742133630097,0.063,128.21,128.18,16.66285814]
[1742133630297,18.85481043,128.21,128.17,16.66285814]
[1742133630610,0.063,128.2,128.17,16.66285814]
[1742133631127,0.063,128.2,128.18,16.66285814]
[1742133633528,0.063,128.2,128.19,16.66285814]
[1742133637115,0.063,128.2,128.19,18.31525814]
[1742133641515,0.31432314,128.28,128.22,20.0]
[1742133641722,18.64964886,128.27,128.24,16.66285814]
[1742133641920,18.64964886,128.27,128.22,20.0]
[1742133642134,18.64964886,128.27,128.24,16.66285814]
[1742133643216,18.64964886,128.27,128.2,20.0]
[1742133643416,18.64964886,128.27,128.24,16.66285814]
[1742133643716,18.64964886,128.27,128.23,16.66285814]
[1742133644324,35.312507,128.27,128.22,16.66285814]
[1742133644930,35.312507,128.27,128.2,20.0]
[1742133645138,18.64964886,128.25,128.19,1.6524]
[1742133645337,18.64964886,128.25,128.21,16.66285814]
[1742133647227,18.64964886,128.24,128.2,16.66285814]
[1742133647411,7.2,128.23,128.2,36.66285814]
[1742133647616,7.2,128.23,128.21,16.66285814]
[1742133648643,7.2,128.23,128.2,36.66285814]
[1742133649024,7.2,128.23,128.2,20.0]
[1742133649225,7.2,128.23,128.2,36.66285814]
[1742133650046,7.2,128.23,128.21,16.66285814]
[1742133650544,7.2,128.23,128.22,16.66285814]
[1742133650720,25.84964886,128.26,128.22,16.66285814]
[1742133650920,25.84964886,128.26,128.23,16.66285814]
[1742133651732,7.2,128.26,128.24,16.66285814]
[1742133652258,7.2,128.26,128.23,36.66285814]
[1742133652417,25.84964886,128.26,128.23,20.0]
[1742133652937,18.64964886,128.25,128.22,16.66285814]
[1742133653126,18.64964886,128.25,128.21,16.66285814]
[1742133654039,18.64964886,128.25,128.2,20.0]
[1742133654227,18.64964886,128.25,128.21,16.66285814]
[1742133654434,23.86285814,128.26,128.21,16.66285814]
[1742133655034,7.2,128.26,128.21,16.66285814]